bitfinex/quotes_ETHUSD_20251218
["timestamp","ask_amount","ask_price","bid_price","bid_amount"]
[1766059662903,4.14285493,2861.4,2860.8,0.001]
[1766059663198,5.00824021,2861.4,2860.8,0.001]
[1766059663862,0.46438023,2861.3,2860.8,0.001]
[1766059664057,0.18362463,2861.4,2861.0,0.9533]
[1766059664378,0.18362463,2861.4,2861.0,1.303]
[1766059664893,0.46438023,2861.3,2861.0,1.303]
[1766059665399,0.46438023,2861.3,2860.8,1.304]
[1766059666088,3.67842218,2861.4,2860.9,1.303]
[1766059666089,0.18362463,2861.4,2860.9,1.303]
[1766059668277,0.46438023,2861.3,2860.9,1.303]
[1766059668478,0.18362463,2861.4,2860.9,1.303]
[1766059670221,0.64800486,2861.4,2860.9,1.303]
[1766059670514,0.18362463,2861.4,2860.9,1.303]
[1766059673712,0.18282463,2861.4,2860.9,1.303]
[1766059673924,0.18282463,2861.4,2860.8,0.001]
[1766059674161,0.18282463,2861.4,2860.9,1.303]
[1766059674718,0.46438023,2861.3,2860.9,1.303]
[1766059674923,0.18282463,2861.4,2860.9,1.303]
[1766059676428,0.64720486,2861.4,2860.9,1.303]
[1766059677471,3.67767372,2861.4,2860.9,1.303]
[1766059677637,0.46438023,2861.3,2860.9,1.303]
[1766059678150,1.00169892,2861.4,2860.9,1.303]
[1766059678750,0.18282463,2861.4,2860.9,1.303]
[1766059679046,0.18282463,2861.4,2860.8,0.001]
[1766059679363,0.18282463,2861.4,2860.9,1.303]
[1766059680573,0.64720486,2861.4,2860.9,1.303]
[1766059680742,0.18282463,2861.4,2860.9,1.303]
[1766059681340,0.18282463,2861.4,2860.8,3.49651056]
[1766059681575,3.89975228,2861.9,2860.9,7.61644409]
[1766059681763,1.01638023,2861.8,2861.2,0.3497]
[1766059681951,0.18176189,2861.8,2861.6,1.303]
[1766059682151,7.65815632,2862.6,2861.4,1.303]
[1766059682352,7.53889956,2862.5,2861.7,0.3497]
[1766059682550,7.53889956,2862.5,2861.8,1.303]
[1766059682551,0.18173032,2862.2,2861.8,1.303]
[1766059682759,0.552,2862.1,2861.2,1.303]
[1766059682956,0.552,2862.1,2861.1,6.66567638]
[1766059683171,0.552,2862.1,2861.2,1.303]
[1766059683379,0.552,2862.1,2861.2,0.9533]
[1766059683545,0.552,2862.1,2861.4,1.303]
[1766059683750,1.01638023,2862.1,2861.4,1.303]
[1766059684086,0.552,2862.1,2861.6,0.9533]
[1766059684250,1.01638023,2862.1,2861.6,1.303]
[1766059686981,4.51033986,2862.1,2861.6,1.303]
[1766059690948,4.51233986,2862.1,2861.6,1.303]
[1766059692253,1.01838023,2862.1,2861.6,1.303]
[1766059693181,1.01838023,2862.1,2861.3,0.76189764]
[1766059693508,1.01838023,2862.1,2861.6,0.4226]
[1766059693718,1.01838023,2862.1,2861.6,1.4179]
[1766059693876,3.49537879,2862.6,2862.1,1.4179]
[1766059694073,0.552,2862.5,2862.1,1.4179]
[1766059694276,1.04976773,2863.1,2862.3,0.9953]
[1766059694277,0.552,2862.9,2862.3,0.9953]
[1766059694503,1.01638023,2862.9,2862.5,0.9953]
[1766059694716,0.002,2863.3,2862.5,0.9953]
[1766059694882,0.552,2863.1,2862.4,6.60617549]
[1766059695208,4.04472616,2863.1,2862.4,6.60617549]
[1766059695416,0.46438023,2863.0,2862.6,1.4179]
[1766059695717,0.552,2863.1,2862.6,1.4179]
[1766059696614,0.002,2863.2,2862.7,1.4179]
[1766059696781,0.46438023,2863.1,2862.5,0.66061755]
[1766059696989,0.46438023,2863.1,2862.6,1.4179]
[1766059697191,0.46438023,2863.1,2862.7,1.4179]
[1766059697698,0.002,2863.2,2862.6,0.8684693]
[1766059698188,0.002,2863.2,2862.7,1.4179]
[1766059698388,0.0012,2863.2,2862.7,1.4179]
[1766059698777,0.0012,2863.2,2862.6,0.8684693]
[1766059698977,0.0012,2863.2,2862.8,1.4179]
[1766059700121,0.0012,2863.2,2862.5,1.4179]
[1766059700415,0.0012,2863.2,2862.4,3.49355881]
[1766059700416,0.0012,2863.2,2862.8,0.4226]
[1766059700617,0.0012,2863.2,2862.9,1.4179]
[1766059704922,0.0012,2863.2,2862.3,0.9953]
[1766059705261,0.0012,2863.2,2862.8,0.4226]
[1766059705435,0.0012,2863.2,2862.9,1.4179]
[1766059710329,0.0012,2863.2,2862.4,1.30952411]
[1766059710528,0.0012,2863.2,2862.5,1.4179]
[1766059710828,0.0012,2863.2,2862.5,0.9953]
[1766059711156,0.0012,2863.2,2862.7,0.4226]
[1766059711357,0.0012,2863.2,2862.8,0.4226]
[1766059711537,0.0012,2863.2,2862.8,1.4179]
[1766059717577,0.03457741,2863.2,2862.6,0.001]
[1766059717948,0.03457741,2863.2,2862.6,1.4189]
[1766059718149,1.14136616,2863.2,2862.6,1.4189]
[1766059718861,1.14136616,2863.2,2862.7,1.4179]
[1766059719058,1.10798875,2863.2,2862.7,1.4179]
[1766059719587,1.10798875,2863.2,2862.6,0.001]
[1766059719588,3.49271768,2863.1,2862.6,1.4189]
[1766059722458,3.49271768,2863.1,2862.6,0.001]
[1766059723194,3.49191768,2863.1,2862.6,0.001]
[1766059723352,3.49191768,2863.1,2862.6,1.4]
[1766059728285,3.49191768,2863.1,2862.6,0.001]
[1766059728591,3.49191768,2863.1,2862.7,1.399]
[1766059736619,4.60063932,2863.2,2862.7,1.399]
[1766059736899,3.49385057,2863.2,2862.6,0.001]
[1766059737104,3.49385057,2863.2,2862.8,0.4983]
[1766059737276,3.49385057,2863.2,2862.9,1.399]
[1766059737990,3.49385057,2863.2,2862.6,0.001]
[1766059738192,3.49385057,2863.2,2862.7,1.399]
[1766059738689,6.98650114,2863.2,2862.6,0.001]
[1766059739088,6.98650114,2863.2,2862.6,1.4]
[1766059739592,6.98650114,2863.2,2862.7,1.399]
[1766059739793,3.49385057,2863.2,2862.7,1.399]
[1766059740714,6.98650114,2863.2,2862.7,1.399]
[1766059742994,0.0012,2863.2,2862.6,0.001]
[1766059743204,0.0012,2863.2,2862.7,1.399]
[1766059743589,0.0012,2863.2,2862.8,0.4983]
[1766059743786,0.0012,2863.2,2863.0,0.4983]
[1766059744097,0.0012,2863.2,2863.0,1.399]
[1766059745891,0.002,2863.3,2862.6,0.001]
[1766059746090,0.002,2863.3,2862.6,0.70584574]
[1766059746310,0.46638023,2863.3,2862.9,0.9007]
[1766059746515,0.46638023,2863.3,2863.1,1.399]
[1766059747097,3.49449609,2863.3,2863.1,1.399]
[1766059747328,6.98699218,2863.3,2862.6,1.25784574]
[1766059747629,6.98699218,2863.3,2862.7,1.399]
[1766059747923,6.98619218,2863.3,2862.7,1.399]
[1766059748295,0.002,2863.2,2862.6,0.001]
[1766059748623,0.002,2863.2,2862.6,1.4]
[1766059748827,0.002,2863.2,2862.7,1.399]
[1766059749521,0.002,2863.2,2862.6,0.001]
[1766059749921,0.002,2863.2,2862.7,1.399]
[1766059750221,0.002,2863.2,2862.6,0.001]
[1766059750391,0.002,2863.2,2862.7,1.399]
[1766059751724,3.49459569,2863.2,2862.7,1.399]
[1766059754224,0.002,2863.2,2862.7,1.399]
[1766059756709,3.49459569,2863.2,2862.7,1.399]
[1766059757538,0.002,2863.2,2862.7,1.5578]
[1766059757827,0.002,2863.2,2862.8,0.5917]
[1766059758037,0.002,2863.2,2863.0,1.5578]
[1766059758418,0.002,2863.2,2862.7,1.5578]
[1766059758624,0.002,2863.2,2862.8,1.5578]
[1766059758810,0.002,2863.2,2862.9,0.5917]
[1766059759013,0.002,2863.2,2863.0,1.5578]
[1766059759212,0.002,2863.2,2862.7,1.22024621]
[1766059759397,0.002,2863.2,2863.0,0.9661]
[1766059759601,0.002,2863.2,2863.0,1.5578]
[1766059763835,0.002,2863.2,2863.0,1.5588]
[1766059765141,0.7474441,2863.2,2862.6,0.001]
[1766059765702,0.7474441,2863.2,2862.6,1.5588]
[1766059766224,3.49271768,2863.1,2862.6,0.001]
[1766059766843,4.24010449,2863.2,2862.6,0.001]
[1766059767039,3.49466039,2863.2,2862.6,0.001]
[1766059767540,3.49466039,2863.2,2862.7,1.5578]
[1766059768339,0.002,2863.2,2862.6,0.001]
[1766059768506,0.002,2863.2,2862.8,0.5917]
[1766059768707,0.74744433,2863.2,2862.8,1.5578]
[1766059769919,0.74744433,2863.2,2862.6,0.001]
[1766059770117,0.74744433,2863.2,2862.6,1.5588]
[1766059770637,3.49271768,2863.1,2862.6,1.5588]
[1766059772759,3.49191768,2863.1,2862.6,1.5588]
[1766059776164,3.49191768,2863.1,2862.7,1.5578]
[1766059776569,3.52529509,2863.1,2862.6,0.001]
[1766059777569,3.49191768,2863.1,2862.6,0.001]
[1766059777776,3.49191768,2863.1,2862.6,1.5588]
[1766059777941,3.52529509,2863.1,2862.6,0.001]
[1766059778576,4.26857309,2863.1,2862.6,0.001]
[1766059778782,3.49191768,2863.1,2862.6,0.001]
[1766059779998,4.04391768,2863.1,2862.6,0.001]
[1766059780296,7.53663536,2863.1,2862.6,0.001]
[1766059781174,0.552,2863.1,2862.7,1.5578]
[1766059782601,4.04473918,2863.1,2862.7,1.5578]
[1766059782788,0.552,2863.1,2862.7,1.5578]
[1766059784301,4.62344853,2863.1,2862.7,1.5578]
[1766059784999,4.62344853,2863.1,2862.6,0.001]
[1766059785304,4.62544853,2863.1,2862.6,0.001]
[1766059786304,8.11817403,2863.1,2862.6,0.001]
[1766059789497,8.11817403,2863.1,2862.5,0.001]
[1766059789828,0.8672174,2863.0,2862.5,0.001]
[1766059791034,1.33159763,2863.0,2862.5,0.001]
[1766059791409,3.49296168,2862.9,2862.5,0.001]
[1766059796044,6.98592336,2862.9,2862.5,0.001]
[1766059797433,6.98512336,2862.9,2862.5,0.001]
[1766059797630,3.49216168,2862.9,2862.5,0.001]
[1766059797935,0.46438023,2862.9,2862.5,1.5355]
[1766059800236,3.95745556,2862.9,2862.5,0.001]
[1766059800428,4.46647342,2862.9,2862.5,0.001]
[1766059802018,3.95928826,2863.0,2862.6,1.5345]
[1766059802829,0.002,2863.0,2862.5,0.001]
[1766059803138,0.46438023,2862.9,2862.6,1.5345]
[1766059804941,3.95932457,2863.0,2862.6,1.5345]
[1766059807012,3.95932457,2863.0,2862.5,0.001]
[1766059807340,4.81533361,2863.0,2862.5,0.001]
[1766059808946,8.30823805,2863.0,2862.5,0.001]
[1766059810124,4.81529371,2863.0,2862.5,0.001]
[1766059811041,4.81529371,2863.0,2862.5,1.5355]
[1766059811851,0.46638023,2863.0,2862.7,6.59673386]
[1766059812053,0.46638023,2863.0,2862.8,1.5345]
[1766059812431,0.46638023,2863.0,2862.6,8.12103386]
[1766059812432,0.46438023,2862.9,2862.6,8.12103386]
[1766059814656,3.49297214,2862.9,2862.6,1.5243]
[1766059814963,3.49297214,2862.9,2862.5,0.001]
[1766059815156,4.19195343,2862.9,2862.5,0.001]
[1766059815535,7.71830298,2862.9,2862.0,6.59673386]
[1766059815739,7.68492557,2862.9,2862.0,6.59673386]
[1766059816067,7.68492557,2862.9,2862.1,1.5673]
[1766059819377,4.19195343,2862.9,2862.1,1.5673]
[1766059819675,0.46438023,2862.9,2862.1,6.59968465]
[1766059820058,0.46438023,2862.9,2862.2,1.5673]
[1766059820465,0.46438023,2862.9,2862.2,0.6466]
[1766059820671,1.51403777,2862.9,2862.4,1.5673]
[1766059821881,4.54262887,2862.9,2862.4,1.5683]
[1766059822179,8.0348002,2862.9,2862.4,0.001]
[1766059822384,0.85888002,2862.8,2862.4,0.001]
[1766059822573,1.90853756,2862.8,2862.4,0.001]
[1766059823884,5.40165151,2862.8,2862.4,0.001]
[1766059824756,8.89476546,2862.8,2862.4,0.001]
[1766059824960,7.84510792,2862.8,2862.4,0.001]
[1766059825161,2.29858162,2862.7,2862.1,1.0496906]
[1766059825390,0.552,2862.6,2862.0,1.5673]
[1766059825894,4.54325573,2862.5,2862.0,1.5673]
[1766059827063,3.49353575,2862.5,2861.8,1.5683]
[1766059827263,1.04977508,2862.4,2861.8,1.05077508]
[1766059827465,1.04977508,2862.4,2861.9,1.5673]
[1766059827784,1.90864025,2862.4,2861.9,1.5673]
[1766059827983,5.40225189,2862.4,2861.9,1.5673]
[1766059828368,4.35247681,2862.4,2861.9,1.5673]
[1766059828565,1.04978243,2862.3,2861.9,1.5673]
[1766059828887,1.04978243,2862.3,2861.8,0.001]
[1766059829506,1.04978243,2862.3,2861.8,1.5683]
[1766059829995,1.04978243,2862.3,2861.9,0.001]
[1766059830293,1.04978243,2862.3,2862.0,1.5673]
[1766059830696,1.04978243,2862.3,2862.0,0.9207]
[1766059830905,1.04978243,2862.3,2862.2,0.9207]
[1766059835198,1.04978243,2862.3,2862.1,0.6466]
[1766059836668,1.04978243,2862.3,2862.1,1.5673]
[1766059840023,1.04978243,2862.3,2862.0,0.001]
[1766059840187,0.03337741,2862.2,2861.8,0.001]
[1766059840393,4.04593801,2862.1,2861.5,0.001]
[1766059840712,0.46438023,2862.0,2861.5,0.001]
[1766059841021,1.38708023,2862.0,2861.5,0.001]
[1766059841225,2.27977586,2862.0,2861.5,0.001]
[1766059842029,1.35707586,2862.0,2861.5,0.001]
[1766059842318,1.04992939,2861.9,2861.5,0.001]
[1766059842511,1.51430962,2861.9,2861.5,0.001]
[1766059842690,1.04992939,2861.9,2861.5,0.001]
[1766059842890,0.89269563,2862.0,2861.5,1.5414]
[1766059843147,1.94262502,2862.0,2861.5,1.5414]
[1766059843513,0.89269563,2862.0,2861.5,1.5414]
[1766059843823,1.51430962,2861.9,2861.5,1.5414]
[1766059844022,1.04992939,2861.9,2861.5,1.5414]
[1766059844326,0.552,2862.1,2861.5,0.001]
[1766059844494,1.04992939,2862.0,2861.6,1.5404]
[1766059846425,1.51430962,2862.0,2861.6,1.5404]
[1766059846722,1.51350962,2862.0,2861.6,1.5404]
[1766059846930,0.46438023,2862.0,2861.6,1.5404]
[1766059847139,1.04992939,2861.9,2861.6,1.5404]
[1766059848244,1.04992939,2861.9,2861.5,0.001]
[1766059849213,4.54413353,2861.9,2861.5,0.001]
[1766059849409,5.44958249,2861.9,2861.5,0.001]
[1766059849633,4.3996531,2861.9,2861.5,0.001]
[1766059849841,0.13999058,2861.8,2861.5,0.001]
[1766059850709,0.13999058,2861.8,2861.4,0.001]
[1766059851230,0.13999058,2861.8,2861.4,1.5414]
[1766059852107,0.13999058,2861.8,2861.4,0.001]
[1766059852335,0.13999058,2861.8,2861.5,1.5404]
[1766059853844,0.13999058,2861.8,2861.4,0.001]
[1766059854142,0.13999058,2861.8,2861.5,1.5404]
[1766059856148,0.13999058,2861.8,2861.5,1.5414]
[1766059861765,0.13999058,2861.8,2861.5,0.001]
[1766059864147,0.13999058,2861.8,2861.4,0.14199058]
[1766059864148,0.50339667,2861.8,2861.4,0.14199058]
[1766059864348,3.99771358,2861.8,2861.4,0.001]
[1766059864656,3.857723,2861.8,2861.4,0.001]
[1766059864869,1.05001758,2861.7,2861.5,0.001]
[1766059866263,4.54453128,2861.7,2861.3,0.001]
[1766059866467,2.44243102,2861.7,2861.2,0.001]
[1766059866774,1.39241344,2861.7,2861.2,0.001]
[1766059866965,1.39241344,2861.7,2861.3,1.5404]
[1766059866966,1.05004698,2861.6,2861.3,1.5404]
[1766059867342,1.05004698,2861.6,2861.2,0.001]
[1766059867947,1.05004698,2861.6,2861.3,0.9151]
[1766059868149,1.05004698,2861.6,2861.5,0.9151]
[1766059868681,1.05004698,2861.6,2861.5,1.5404]
[1766059868872,0.552,2861.7,2861.5,1.5404]
[1766059869179,1.60201758,2861.7,2861.5,1.5404]
[1766059871492,1.60121758,2861.7,2861.5,1.5404]
[1766059873202,1.60121758,2861.7,2861.5,1.5414]
[1766059878304,1.60121758,2861.7,2861.5,0.001]
[1766059878901,0.14000626,2861.6,2861.5,0.001]
[1766059880207,0.5512,2861.7,2861.5,0.001]
[1766059880595,0.5532,2861.7,2861.5,0.001]
[1766059881404,1.01326488,2861.7,2861.3,0.001]
[1766059883008,0.5532,2861.7,2861.3,0.001]
[1766059883177,4.04769278,2861.7,2861.3,0.001]
[1766059883608,0.5532,2861.7,2861.3,0.001]
[1766059886424,0.5532,2861.7,2860.9,1.05103228]
[1766059886425,0.49775764,2861.6,2860.9,1.05103228]
[1766059886631,6.9895855,2861.4,2860.9,0.001]
[1766059886788,1.94473651,2861.3,2860.9,0.001]
[1766059886987,0.03337741,2861.2,2860.9,0.001]
[1766059887287,0.14003469,2861.2,2860.9,0.001]
[1766059889024,3.63513452,2861.2,2860.9,0.001]
[1766059889527,3.49509983,2861.2,2860.9,0.001]
[1766059889727,1.59090609,2861.1,2860.9,0.001]
[1766059890229,0.54064589,2861.1,2860.9,0.001]
[1766059890433,1.0502602,2861.0,2860.9,0.001]
[1766059892829,1.0502602,2861.0,2860.8,0.001]
[1766059893420,1.0502602,2861.0,2860.5,1.6303]
[1766059893633,1.55886701,2861.0,2860.5,1.6303]
[1766059894132,0.50860681,2861.0,2860.5,1.6303]
[1766059894332,1.05030064,2860.9,2860.5,1.6303]
[1766059896248,1.04950064,2860.9,2860.5,1.6303]
[1766059896751,1.04950064,2860.9,2860.5,0.001]
[1766059897109,4.54490851,2860.9,2860.5,0.001]
[1766059897535,3.49540787,2860.9,2860.5,0.001]
[1766059897735,1.05031535,2860.8,2860.5,0.001]
[1766059901145,1.60231535,2860.8,2860.5,0.001]
[1766059901353,1.60231535,2860.8,2860.3,0.001]
[1766059901354,5.09786045,2860.8,2860.3,0.001]
[1766059901843,0.93387658,2860.7,2860.3,0.001]
[1766059902251,1.98427284,2860.7,2860.3,0.001]
[1766059902752,1.98427284,2860.7,2860.5,0.001]
[1766059903256,1.98427284,2860.7,2860.3,0.001]
[1766059903257,4.42953521,2860.7,2860.3,0.001]
[1766059903561,0.14005332,2860.6,2860.1,0.001]
[1766059907056,0.65221187,2860.6,2860.1,0.001]
[1766059907264,4.14798902,2860.6,2859.8,0.001]
[1766059907559,4.14798902,2860.6,2859.8,1.5813]
[1766059907560,4.0079357,2860.6,2859.8,1.5813]
[1766059907745,1.05046614,2860.5,2859.8,1.5813]
[1766059907948,1.05046617,2860.8,2860.5,1.5803]
[1766059908275,0.48257628,2861.5,2860.8,1.5803]
[1766059908276,1.60230064,2861.3,2860.8,1.5803]
[1766059908562,4.04692027,2861.3,2860.8,1.5803]
[1766059910333,4.04692027,2861.3,2860.6,2.61009697]
[1766059910773,7.07311995,2861.2,2860.3,1.5598]
[1766059910932,1.11200402,2861.1,2860.3,1.5598]
[1766059911129,1.11200402,2861.1,2860.1,2.61018522]
[1766059911130,0.002,2860.9,2860.1,2.61018522]
[1766059911352,0.552,2860.8,2860.0,0.001]
[1766059911763,1.16217202,2860.7,2860.0,0.001]
[1766059911955,1.62655225,2860.7,2860.0,0.001]
[1766059912263,0.8787292,2860.6,2860.0,0.001]
[1766059912452,4.37459795,2860.6,2860.0,0.001]
[1766059913370,7.8704667,2860.6,2860.0,0.001]
[1766059913548,0.46438023,2860.5,2860.0,0.001]
[1766059913754,0.552,2860.4,2860.0,0.001]
[1766059914142,1.44068469,2860.4,2860.0,0.001]
[1766059914340,1.44068469,2860.4,2859.8,0.001]
[1766059914546,3.49613676,2860.3,2859.8,0.001]
[1766059915369,0.552,2860.4,2859.8,0.001]
[1766059915535,0.552,2860.4,2859.9,1.5598]
[1766059915862,1.05061329,2860.2,2859.8,0.001]
[1766059916056,1.01638023,2860.4,2860.0,1.5598]
[1766059916253,2.06697512,2860.4,2860.0,1.5598]
[1766059916768,1.60259489,2860.4,2860.0,1.5598]
[1766059918647,2.06697512,2860.4,2860.0,1.5598]
[1766059919745,5.09861728,2860.4,2860.0,1.5598]
[1766059920477,5.09861728,2860.4,2859.8,1.5608]
[1766059920677,5.95806981,2860.4,2859.8,1.5608]
[1766059920876,5.95726981,2860.4,2859.8,1.5608]
[1766059921577,5.95726981,2860.4,2859.8,0.001]
[1766059922581,4.90667492,2860.4,2859.8,0.001]
[1766059922877,5.95726981,2860.4,2859.8,0.001]
[1766059923460,5.95726981,2860.4,2859.8,1.5608]
[1766059923659,1.60179489,2860.4,2859.8,1.5608]
[1766059923860,5.09780961,2860.4,2859.8,1.5608]
[1766059925749,0.552,2860.4,2860.2,0.6016]
[1766059925951,0.552,2860.4,2860.2,1.5598]
[1766059927274,0.552,2860.7,2860.2,1.5598]
[1766059927649,1.01638023,2860.7,2860.2,1.5598]
[1766059927849,4.51204902,2860.7,2860.2,1.5598]
[1766059928047,1.01638023,2860.7,2860.2,1.5598]
[1766059929581,0.552,2860.7,2860.1,6.60873972]
[1766059929763,0.552,2860.7,2860.3,1.5598]
[1766059930771,0.46438023,2860.6,2860.3,1.5598]
[1766059931086,0.46438023,2860.6,2860.1,2.61024407]
[1766059931252,0.46438023,2860.6,2860.1,1.5598]
[1766059932089,0.46438023,2860.6,2860.1,1.5608]
[1766059932953,3.49577754,2860.6,2860.1,0.001]
[1766059933367,4.51209342,2860.7,2860.1,0.001]
[1766059933982,4.51209342,2860.7,2860.1,1.5365]
[1766059934185,0.552,2860.7,2860.2,1.5355]
[1766059934986,0.552,2860.7,2860.1,0.001]
[1766059935185,4.0476568,2860.7,2860.3,1.5355]
[1766059935390,0.46438023,2860.6,2860.1,1.5365]
[1766059936194,3.49580503,2860.6,2860.1,1.5365]
[1766059936687,0.552,2860.7,2860.1,1.5365]
[1766059936688,4.51208412,2860.7,2860.1,1.5365]
[1766059941290,8.00778801,2860.7,2860.1,1.5365]
[1766059942494,4.51208412,2860.7,2860.1,1.5365]
[1766059943393,5.31325031,2860.7,2860.1,1.5365]
[1766059943796,8.8089542,2860.7,2860.1,1.5365]
[1766059943997,8.8089542,2860.7,2860.1,0.001]
[1766059945590,8.8081542,2860.7,2860.1,0.001]
[1766059945988,5.31245031,2860.7,2860.1,0.001]
[1766059946381,0.8810019,2860.6,2860.1,1.5365]
[1766059946584,4.51128412,2860.7,2860.1,1.5365]
[1766059948903,4.51328412,2860.7,2860.1,1.5365]
[1766059949600,8.00898801,2860.7,2860.1,1.5365]
[1766059954511,8.00898801,2860.7,2860.1,0.001]
[1766059954714,4.51328412,2860.7,2860.2,1.5355]
[1766059955200,5.41962073,2860.7,2860.2,1.5355]
[1766059955402,8.91532462,2860.7,2860.1,0.001]
[1766059958916,8.91532462,2860.7,2860.1,1.5365]
[1766059962419,5.41962073,2860.7,2860.1,1.5365]
[1766059962923,5.41962073,2860.7,2860.1,1.496]
[1766059963730,5.41962073,2860.7,2860.1,0.001]
[1766059964037,5.41962073,2860.7,2860.2,1.495]
[1766059965429,5.41962073,2860.7,2860.3,1.495]
[1766059967627,5.41962073,2860.7,2860.1,0.001]
[1766059967926,5.41962073,2860.7,2860.1,1.496]
[1766059968426,8.91532462,2860.7,2860.1,1.496]
[1766059970428,8.91452462,2860.7,2860.1,1.496]
[1766059971412,18.91452462,2860.7,2860.1,1.496]
[1766059971707,5.40148153,2860.6,2860.1,1.496]
[1766059972733,5.40148153,2860.6,2860.1,0.001]
[1766059975438,8.89730379,2860.6,2860.1,0.001]
[1766059977532,8.89730379,2860.6,2859.8,0.001]
[1766059977708,8.89730379,2860.6,2859.8,1.496]
[1766059977709,9.94791708,2860.6,2859.8,1.496]
[1766059977908,2.84807193,2860.5,2860.1,1.495]
[1766059978833,2.84807193,2860.5,2860.1,0.9545]
[1766059979022,2.84807193,2860.5,2859.8,0.001]
[1766059979023,4.04777952,2860.6,2860.3,0.9545]
[1766059980539,4.04777952,2860.6,2860.2,0.5405]
[1766059981042,4.04777952,2860.6,2860.1,0.9545]
[1766059981228,4.04777952,2860.6,2860.0,0.5415]
[1766059981605,4.04777952,2860.6,2860.0,1.496]
[1766059981835,5.9444121,2860.6,2860.0,1.496]
[1766059982404,5.9444121,2860.6,2860.0,0.001]
[1766059982907,5.9444121,2860.6,2860.0,1.496]
[1766059983905,10.0,2860.4,2860.0,1.496]
[1766059990445,10.0,2860.4,2860.1,1.495]
[1766059991136,10.0,2860.4,2860.0,0.001]
[1766059991342,13.4960154,2860.4,2860.0,0.001]
[1766059991752,10.0,2860.4,2860.1,1.495]
[1766059992423,10.0,2860.4,2860.0,0.001]
[1766059992622,10.0,2860.4,2860.1,1.5283]
[1766059993649,10.0,2860.4,2860.0,0.001]
[1766059993845,10.0,2860.4,2860.1,1.5283]
[1766059994028,10.0,2860.4,2860.0,0.001]
[1766059994223,10.0,2860.4,2860.2,0.5531]
[1766059994427,10.0,2860.4,2860.2,1.5283]
[1766059995049,9.9992,2860.4,2860.2,1.5283]
[1766059996135,9.9992,2860.4,2860.0,0.001]
[1766059996344,13.49522775,2860.4,2860.0,1.5293]
[1766059996850,13.49522775,2860.4,2860.0,0.001]
[1766059997051,15.24953078,2860.4,2860.0,0.001]
[1766059998126,11.75350303,2860.4,2860.0,0.001]
[1766059998331,15.24952153,2860.4,2860.0,0.001]
[1766059999034,18.74554003,2860.4,2860.0,0.001]
[1766059999433,18.88562033,2860.4,2860.0,0.001]
[1766059999753,18.88562033,2860.4,2859.7,0.001]
[1766059999754,2.35294226,2860.3,2859.7,0.001]
[1766059999922,3.49638124,2860.1,2859.3,0.001]
[1766060000123,3.49638124,2860.1,2859.4,1.5283]
[1766060000953,3.49638124,2860.1,2859.3,0.001]
[1766060001149,3.49638124,2860.1,2859.4,1.5283]
[1766060001354,0.75446865,2860.0,2859.4,1.5283]
[1766060002456,6.60968536,2859.5,2859.0,0.001]
[1766060002647,0.552,2859.4,2859.0,0.001]
[1766060003036,0.552,2859.4,2859.0,1.5293]
[1766060004541,0.4049177,2859.3,2859.0,0.001]
[1766060006731,3.90229404,2859.3,2858.9,0.001]
[1766060007041,3.90229404,2859.3,2858.6,0.001]
[1766060007042,3.90229404,2859.3,2858.6,1.5293]
[1766060007251,6.61552709,2859.2,2858.6,0.001]
[1766060007435,1.40151975,2859.1,2858.6,0.001]
[1766060007637,0.552,2859.0,2858.0,1.5283]
[1766060007959,0.552,2859.0,2857.9,4.05106842]
[1766060008135,0.552,2859.0,2857.9,1.01638023]
[1766060008463,0.405504,2858.9,2858.1,0.5531]
[1766060008637,0.405504,2858.9,2858.2,1.5283]
[1766060009146,0.44552913,2858.8,2858.2,1.5283]
[1766060009345,0.44552913,2858.8,2858.1,1.5283]
[1766060009534,0.44552913,2858.8,2858.2,0.5531]
[1766060009735,0.44552913,2858.8,2858.3,1.5283]
[1766060010078,0.44552913,2858.8,2858.1,1.5283]
[1766060010287,0.44552913,2858.8,2858.0,1.5283]
[1766060010936,0.44552913,2858.8,2857.9,3.96340462]
[1766060011137,0.44552913,2858.8,2857.9,5.42661652]
[1766060011457,0.44552913,2858.8,2858.1,1.5283]
[1766060011958,0.44552913,2858.8,2858.0,1.5283]
[1766060012162,3.94350779,2858.8,2858.1,0.9752]
[1766060012678,0.44552913,2858.8,2858.1,0.9752]
[1766060013654,0.44552913,2858.8,2858.2,1.5283]
[1766060013865,0.44552913,2858.8,2858.1,1.5283]
[1766060014066,0.44552913,2858.8,2858.0,3.49989066]
[1766060014881,0.44552913,2858.8,2858.0,0.001]
[1766060015684,0.44552913,2858.8,2858.1,1.5283]
[1766060015915,0.44552913,2858.8,2858.0,0.001]
[1766060016052,0.44552913,2858.8,2858.1,1.5283]
[1766060016489,0.44552913,2858.8,2858.0,0.001]
[1766060016688,0.44552913,2858.8,2858.1,0.9752]
[1766060016886,3.94350405,2858.8,2858.2,1.5283]
[1766060017074,0.43490081,2858.7,2858.2,1.5283]
[1766060017454,0.43490081,2858.7,2858.1,0.9752]
[1766060017654,0.44552913,2858.8,2858.3,1.5283]
[1766060018073,0.44552913,2858.8,2858.0,3.49992748]
[1766060018352,0.405504,2858.9,2858.0,3.49992748]
[1766060018668,0.405504,2858.9,2858.1,1.5283]
[1766060018851,3.90335401,2858.9,2858.0,3.49992748]
[1766060019185,4.51415581,2859.0,2858.1,1.5283]
[1766060019392,4.51415581,2859.0,2858.2,0.5531]
[1766060019714,1.40570914,2858.9,2858.4,1.5283]
[1766060019892,1.40490914,2858.9,2858.4,1.5283]
[1766060020055,1.40490914,2858.9,2858.1,1.5283]
[1766060020553,1.40490914,2858.9,2858.0,0.001]